fUSD/lending_fUSD_20240420
["ID","MTS","AMOUNT","RATE_DAILY","PERIOD"]
[323055781,1713621122147,-384.1331973,0.00017683,2]
[323055782,1713621122156,-390.41373425,0.00017683,2]
[323055783,1713621122165,-244.14533383,0.00017683,2]
[323055784,1713621122175,-3821.6893512,0.00017684,2]
[323055785,1713621122184,-32558.70784254,0.00017684,2]
[323055786,1713621122193,-546.97269817,0.00017684,2]
[323055787,1713621122203,-244.14533383,0.00017685,2]
[323055788,1713621122212,-307.30655783,0.00017685,2]
[323055789,1713621122221,-6893.10664375,0.00017685,2]
[323055790,1713621122230,-546.97269817,0.00017686,2]
[323055791,1713621122239,-191.76457071,0.00017686,2]
[323055792,1713621122248,-438.58853831,0.00017687,2]
[323055793,1713621122260,-322.80880317,0.00017687,2]
[323055794,1713621122269,-244.83060149,0.00017687,2]
[323055795,1713621122279,-178948.99790269,0.00017688,2]
[323055796,1713621122289,-5634.96145999,0.0001769,2]
[323055797,1713621122302,-6509.89280983,0.00017691,2]
[323055798,1713621122312,-178948.99790269,0.00017691,2]
[323055799,1713621122321,-178948.99790269,0.00017691,2]
[323055800,1713621122330,-3541.17535609,0.00017692,2]
[323055801,1713621122340,-9418.83262516,0.00017692,2]
[323055802,1713621122349,-6509.89280983,0.00017692,2]
[323055803,1713621122359,-178948.99790269,0.00017693,2]
[323055804,1713621122368,-9418.83262516,0.00017693,2]
[323055805,1713621122378,-162.23845249,0.00017693,2]
[323055806,1713621122388,-322.80880317,0.00017693,2]
[323055807,1713621122396,-322.80880317,0.00017695,2]
[323055808,1713621122406,-5634.96145999,0.00017695,2]
[323055809,1713621122415,-312.03466031,0.00017695,2]
[323055810,1713621122425,-244.14533383,0.00017696,2]
[323055811,1713621122434,-384.1331973,0.00017696,2]
[323055812,1713621122443,-5634.96145999,0.00017696,2]
[323055813,1713621122453,-307.30655783,0.00017696,2]
[323055814,1713621122464,-150.0,0.00017697,2]
[323055815,1713621122473,-312.03466031,0.00017697,2]
[323055816,1713621122482,-390.41373425,0.00017697,2]
[323055817,1713621122491,-191.76457071,0.00017698,2]
[323055818,1713621122500,-32558.70784254,0.00017698,2]
[323055819,1713621122511,-546.97269817,0.00017698,2]
[323055820,1713621122520,-546.97269817,0.00017698,2]
[323055821,1713621122530,-9418.83262516,0.00017699,2]
[323055822,1713621122539,-6509.89280983,0.00017699,2]
[323055823,1713621122549,-1131.28301934,0.00017699,2]
[323055824,1713621122558,-178948.99790269,0.00017699,2]
[323055825,1713621122568,-244.14533383,0.000177,2]
[323055826,1713621122577,-352.0,0.000177,2]
[323055827,1713621122586,-1000.0,0.000177,2]
[323055828,1713621122596,-222.0,0.000177,2]
[323055829,1713621122605,-152.0,0.00017719,3]
[323055830,1713621122614,-150.0,0.00017728,2]
[323055831,1713621122623,-2300.0,0.000178,2]
[323055832,1713621122633,-500.0,0.00017808,2]
[323055833,1713621122642,-1039.36,0.00017808,2]
[323055834,1713621122651,-500.0,0.00017808,2]
[323055835,1713621122660,-500.0,0.00017808,2]
[323055836,1713621122669,-635.04,0.00017808,2]
[323055837,1713621122680,-639.54,0.00017808,2]
[323055838,1713621122689,-500.0,0.00017808,2]
[323055839,1713621122699,-500.0,0.00017808,2]
[323055840,1713621122708,-852.82,0.00017808,2]
[323055841,1713621122717,-654.32,0.00017808,2]
[323055842,1713621122727,-500.0,0.00017808,2]
[323055843,1713621122736,-502.56,0.00017808,2]
[323055844,1713621122745,-322.50517678,0.00017808,2]
[323055845,1713621122755,-357.72912498,0.00017808,2]
[323055846,1713621122765,-500.0,0.00017808,2]
[323055847,1713621122775,-500.0,0.00017808,2]
[323055848,1713621122783,-611.35,0.00017808,2]
[323055849,1713621122793,-500.0,0.00017808,2]
[323055850,1713621122802,-735.88,0.00017808,2]
[323055851,1713621122812,-717.35,0.00017808,2]
[323055852,1713621122821,-500.0,0.00017808,2]
[323055853,1713621122830,-539.29,0.00017808,2]
[323055854,1713621122840,-500.0,0.00017808,2]
[323055855,1713621122849,-500.0,0.00017808,2]
[323055856,1713621122858,-500.0,0.00017808,2]
[323055857,1713621122867,-500.0,0.00017808,2]
[323055858,1713621122877,-500.0,0.00017808,2]
[323055859,1713621122887,-500.0,0.00017808,2]
[323055860,1713621122897,-569.73,0.00017808,2]
[323055861,1713621122905,-500.0,0.00017808,2]
[323055862,1713621122915,-827.03,0.00017808,2]
[323055863,1713621122925,-637.21,0.00017808,2]
[323055864,1713621122935,-500.0,0.00017808,2]
[323055865,1713621122944,-579.7,0.00017808,2]
[323055866,1713621122953,-969.36,0.00017808,2]
[323055867,1713621122963,-781.94,0.00017808,2]
[323055868,1713621122972,-667.13,0.00017808,2]
[323055869,1713621122981,-500.0,0.00017808,2]
[323055870,1713621122990,-500.0,0.00017808,2]
[323055871,1713621122999,-500.0,0.00017808,2]
[323055872,1713621123008,-500.0,0.00017808,2]
[323055873,1713621123017,-500.0,0.00017808,2]
[323055874,1713621123026,-500.0,0.00017808,2]
[323055875,1713621123035,-770.44,0.00017808,2]
[323055876,1713621123044,-1099.12,0.00017808,2]
[323055877,1713621123053,-597.89,0.00017808,2]
[323055878,1713621123062,-500.0,0.00017808,2]
[323055879,1713621123071,-522.54,0.00017808,2]
[323055880,1713621123081,-500.0,0.00017808,2]
[323055881,1713621123091,-500.0,0.00017808,2]
[323055882,1713621123100,-532.55,0.00017808,2]
[323055883,1713621123109,-500.0,0.00017808,2]
[323055884,1713621123119,-618.57,0.00017808,2]
[323055885,1713621123128,-500.0,0.00017808,2]
[323055886,1713621123138,-737.86,0.00017808,2]
[323055887,1713621123148,-500.0,0.00017808,2]
[323055888,1713621123157,-515.87,0.00017808,2]
[323055889,1713621123166,-500.0,0.00017808,2]
[323055890,1713621123175,-912.68,0.00017808,2]
[323055891,1713621123185,-500.0,0.00017808,2]
[323055892,1713621123194,-860.75,0.00017808,2]
[323055893,1713621123203,-500.0,0.00017808,2]
[323055894,1713621123212,-702.21,0.00017808,2]
[323055895,1713621123222,-500.0,0.00017808,2]
[323055896,1713621123231,-500.0,0.00017808,2]
[323055897,1713621123241,-500.0,0.00017808,2]
[323055898,1713621123251,-821.61,0.00017808,2]
[323055899,1713621123261,-821.76,0.00017808,2]
[323055900,1713621123271,-549.15,0.00017808,2]
[323055901,1713621123280,-500.0,0.00017808,2]
[323055902,1713621123291,-500.0,0.00017808,2]
[323055903,1713621123305,-500.0,0.00017808,2]
[323055904,1713621123314,-500.0,0.00017808,2]
[323055905,1713621123324,-500.0,0.00017808,2]
[323055906,1713621123334,-940.84,0.00017808,2]
[323055907,1713621123344,-500.0,0.00017808,2]
[323055908,1713621123353,-863.56,0.00017808,2]
[323055909,1713621123363,-607.85752317,0.00017808,2]
[323055910,1713621123373,-1083.21,0.00017808,2]
[323055911,1713621123384,-500.0,0.00017808,2]
[323055912,1713621123393,-1649.11,0.00017808,2]
[323055913,1713621123403,-500.0,0.00017808,2]
[323055914,1713621123415,-500.0,0.00017808,2]
[323055915,1713621123424,-933.2,0.00017808,2]
[323055916,1713621123435,-500.0,0.00017808,2]
[323055917,1713621123444,-1738.53,0.00017808,2]
[323055918,1713621123454,-500.0,0.00017808,2]
[323055919,1713621123464,-500.0,0.00017808,2]
[323055920,1713621123474,-641.19,0.00017808,2]
[323055921,1713621123484,-546.2,0.00017808,2]
[323055922,1713621123494,-669.09,0.00017808,2]
[323055923,1713621123504,-538.48,0.00017808,2]
[323055924,1713621123514,-500.0,0.00017808,2]
[323055925,1713621123523,-526.85,0.00017808,2]
[323055926,1713621123534,-1472.9,0.00017808,2]
[323055927,1713621123544,-633.05,0.00017808,2]
[323055928,1713621123554,-500.0,0.00017808,2]
[323055929,1713621123564,-679.04,0.00017808,2]
[323055930,1713621123574,-889.7,0.00017808,2]
[323055931,1713621123585,-500.0,0.00017808,2]
[323055932,1713621123595,-749.34,0.00017808,2]
[323055933,1713621123605,-614.66,0.00017808,2]
[323055934,1713621123615,-669.86,0.00017808,2]
[323055935,1713621123624,-627.14,0.00017808,2]
[323055936,1713621123634,-500.0,0.00017808,2]
[323055937,1713621123644,-887.51,0.00017808,2]
[323055938,1713621123654,-500.0,0.00017808,2]
[323055939,1713621123665,-595.2,0.00017808,2]
[323055940,1713621123675,-500.0,0.00017808,2]
[323055941,1713621123685,-500.0,0.00017808,2]
[323055942,1713621123695,-712.4,0.00017808,2]
[323055943,1713621123705,-654.49,0.00017808,2]
[323055944,1713621123715,-583.86,0.00017808,2]
[323055945,1713621123725,-714.19,0.00017808,2]
[323055946,1713621123735,-500.0,0.00017808,2]
[323055947,1713621123744,-543.54,0.00017808,2]
[323055948,1713621123754,-856.07,0.00017808,2]
[323055949,1713621123765,-519.9,0.00017808,2]
[323055950,1713621123775,-1382.29,0.00017808,2]
[323055951,1713621123784,-500.0,0.00017808,2]
[323055952,1713621123794,-342.95579885,0.00017808,2]
[323055953,1713621123805,-704.01,0.00017808,2]
[323055954,1713621123815,-500.0,0.00017808,2]
[323055955,1713621123825,-943.86,0.00017808,2]
[323055956,1713621123835,-778.05,0.00017808,2]
[323055957,1713621123845,-533.87,0.00017808,2]
[323055958,1713621123855,-1206.79,0.00017808,2]
[323055959,1713621123865,-864.0,0.00017808,2]
[323055960,1713621123875,-871.35,0.00017808,2]
[323055961,1713621123885,-500.0,0.00017808,2]
[323055962,1713621123895,-581.68,0.00017808,2]
[323055963,1713621123905,-998.69,0.00017808,2]
[323055964,1713621123915,-580.51,0.00017808,2]
[323055965,1713621123925,-500.0,0.00017808,2]
[323055966,1713621123935,-564.88,0.00017808,2]
[323055967,1713621123944,-777.99,0.00017808,2]
[323055968,1713621123954,-566.7,0.00017808,2]
[323055969,1713621123964,-500.0,0.00017808,2]
[323055970,1713621123974,-772.56,0.00017808,2]
[323055971,1713621123984,-922.4,0.00017808,2]
[323055972,1713621123994,-500.0,0.00017808,2]
[323055973,1713621124003,-741.19,0.00017808,2]
[323055974,1713621124015,-500.0,0.00017808,2]
[323055975,1713621124025,-510.23,0.00017808,2]
[323055976,1713621124034,-500.0,0.00017808,2]
[323055977,1713621124044,-1301.99,0.00017808,2]
[323055978,1713621124054,-1011.91,0.00017808,2]
[323055979,1713621124064,-729.34,0.00017808,2]
[323055980,1713621124074,-598.99,0.00017808,2]
[323055981,1713621124083,-590.27,0.00017808,2]
[323055982,1713621124093,-183.09720297,0.00017808,2]
[323055983,1713621124103,-500.0,0.00017808,2]
[323055984,1713621124113,-983.5,0.00017808,2]
[323055985,1713621124123,-500.0,0.00017808,2]
[323055986,1713621124132,-500.0,0.00017808,2]
[323055987,1713621124142,-500.0,0.00017808,2]
[323055988,1713621124153,-829.71,0.00017808,2]
[323055989,1713621124163,-500.0,0.00017808,2]
[323055990,1713621124173,-605.59,0.00017808,2]
[323055991,1713621124183,-500.0,0.00017808,2]
[323055992,1713621124193,-1243.7,0.00017808,2]
[323055993,1713621124204,-1886.34,0.00017808,2]
[323055994,1713621124213,-500.0,0.00017808,2]
[323055995,1713621124223,-685.34,0.00017808,2]
[323055996,1713621124232,-500.0,0.00017808,2]
[323055997,1713621124242,-500.0,0.00017808,2]
[323055998,1713621124252,-309.8286323,0.00017808,2]
[323055999,1713621124263,-500.0,0.00017808,2]
[323056000,1713621124273,-500.0,0.00017808,2]
[323056001,1713621124282,-612.53,0.00017808,2]
[323056002,1713621124293,-723.5,0.00017808,2]
[323056003,1713621124305,-730.92,0.00017808,2]
[323056004,1713621124316,-500.0,0.00017808,2]
[323056005,1713621124325,-1025.52,0.00017808,2]
[323056006,1713621124336,-500.0,0.00017808,2]
[323056007,1713621124346,-500.0,0.00017808,2]
[323056008,1713621124356,-1486.68,0.00017808,2]
[323056009,1713621124366,-500.0,0.00017808,2]
[323056010,1713621124376,-970.1,0.00017808,2]
[323056011,1713621124386,-500.0,0.00017808,2]
[323056012,1713621124397,-600.76,0.00017808,2]
[323056013,1713621124407,-580.95,0.00017808,2]
[323056014,1713621124417,-775.5,0.00017808,2]
[323056015,1713621124426,-1195.92,0.00017808,2]
[323056016,1713621124437,-971.12,0.00017808,2]
[323056017,1713621124447,-558.98,0.00017808,2]
[323056018,1713621124458,-751.59,0.00017808,2]
[323056019,1713621124468,-500.0,0.00017808,2]
[323056020,1713621124478,-1627.69,0.00017808,2]
[323056021,1713621124488,-1693.65,0.00017808,2]
[323056022,1713621124498,-500.0,0.00017808,2]
[323056023,1713621124508,-712.6,0.00017808,2]
[323056024,1713621124520,-500.0,0.00017808,2]
[323056025,1713621124529,-964.32,0.00017808,2]
[323056026,1713621124539,-611.81,0.00017808,2]
[323056027,1713621124549,-1500.36,0.00017808,2]
[323056028,1713621124560,-630.97,0.00017808,2]
[323056029,1713621124570,-1123.09,0.00017808,2]
[323056030,1713621124581,-500.0,0.00017808,2]
[323056031,1713621124590,-500.0,0.00017808,2]
[323056032,1713621124600,-571.83,0.00017808,2]
[323056033,1713621124610,-1122.67,0.00017808,2]
[323056034,1713621124620,-959.94,0.00017808,2]
[323056035,1713621124630,-666.18,0.00017808,2]
[323056036,1713621124639,-717.02,0.00017808,2]
[323056037,1713621124650,-500.0,0.00017808,2]
[323056038,1713621124660,-656.38,0.00017808,2]
[323056039,1713621124670,-672.57,0.00017808,2]
[323056040,1713621124680,-500.0,0.00017808,2]
[323056041,1713621124690,-817.63,0.00017808,2]
[323056042,1713621124701,-748.28,0.00017808,2]
[323056043,1713621124711,-1401.32,0.00017808,2]
[323056044,1713621124721,-1699.19,0.00017808,2]
[323056045,1713621124732,-1021.58,0.00017808,2]
[323056046,1713621124743,-500.0,0.00017808,2]
[323056047,1713621124753,-2008.01,0.00017808,2]
[323056048,1713621124763,-502.08,0.00017808,2]
[323056049,1713621124774,-623.84,0.00017808,2]
[323056050,1713621124783,-556.29,0.00017808,2]
[323056051,1713621124792,-1672.8,0.00017808,2]
[323056052,1713621124802,-1383.08,0.00017808,2]
[323056053,1713621124812,-500.0,0.00017808,2]
[323056054,1713621124822,-905.55,0.00017808,2]
[323056055,1713621124832,-609.08028301,0.00017808,2]
[323056056,1713621124842,-500.0,0.00017808,2]
[323056057,1713621124852,-500.0,0.00017808,2]
[323056058,1713621124863,-500.0,0.00017808,2]
[323056059,1713621124873,-500.0,0.00017808,2]
[323056060,1713621124884,-1271.86,0.00017808,2]
[323056061,1713621124894,-531.26,0.00017808,2]
[323056062,1713621124905,-858.15,0.00017808,2]
[323056063,1713621124915,-500.0,0.00017808,2]
[323056064,1713621124926,-2051.78,0.00017808,2]
[323056065,1713621124936,-500.0,0.00017808,2]
[323056066,1713621124946,-2102.91,0.00017808,2]
[323056067,1713621124956,-495.25,0.00017808,2]
[323056068,1713621124966,-888.43,0.00017808,2]
[323056069,1713621124976,-500.0,0.00017808,2]
[323056070,1713621124986,-547.06,0.00017808,2]
[323056071,1713621124996,-500.0,0.00017808,2]
[323056072,1713621125007,-1220.03,0.00017808,2]
[323056073,1713621125019,-1132.15,0.00017808,2]
[323056074,1713621125030,-1428.28,0.00017808,2]
[323056075,1713621125041,-1590.37,0.00017808,2]
[323056076,1713621125052,-640.38,0.00017808,2]
[323056077,1713621125063,-621.99,0.00017808,2]
[323056078,1713621125074,-1083.02,0.00017808,2]
[323056079,1713621125084,-1323.41,0.00017808,2]
[323056080,1713621125095,-912.32,0.00017808,2]
[323056081,1713621125105,-500.0,0.00017808,2]
[323056082,1713621125115,-500.0,0.00017808,2]
[323056083,1713621125125,-590.76,0.00017808,2]
[323056084,1713621125135,-827.0,0.00017808,2]
[323056085,1713621125145,-720.61,0.00017808,2]
[323056086,1713621125156,-1207.81,0.00017808,2]
[323056087,1713621125166,-500.0,0.00017808,2]
[323056088,1713621125177,-972.02,0.00017808,2]
[323056089,1713621125188,-1649.09,0.00017808,2]
[323056090,1713621125198,-3308.96,0.00017808,2]
[323056091,1713621125209,-1214.04,0.00017808,2]
[323056092,1713621125219,-500.0,0.00017808,2]
[323056093,1713621125230,-500.0,0.00017808,2]
[323056094,1713621125240,-500.0,0.00017808,2]
[323056095,1713621125251,-803.54,0.00017808,2]
[323056096,1713621125261,-1303.19,0.00017808,2]
[323056097,1713621125273,-3936.85,0.00017808,2]
[323056098,1713621125284,-586.97,0.00017808,2]
[323056099,1713621125297,-599.69,0.00017808,2]
[323056100,1713621125543,-1031.32,0.00017808,2]
[323056101,1713621125554,-789.55,0.00017808,2]
[323056102,1713621125564,-1204.32,0.00017808,2]
[323056103,1713621125574,-500.0,0.00017808,2]
[323056104,1713621125583,-500.0,0.00017808,2]
[323056105,1713621125592,-500.0,0.00017808,2]
[323056106,1713621125602,-642.18144315,0.00017808,2]
[323056107,1713621125611,-702.73,0.00017808,2]
[323056108,1713621125620,-516.52,0.00017808,2]
[323056109,1713621125630,-3310.74,0.00017808,2]
[323056110,1713621125639,-500.0,0.00017808,2]
[323056111,1713621125648,-500.0,0.00017808,2]
[323056112,1713621125658,-500.0,0.00017808,2]
[323056113,1713621125668,-500.0,0.00017808,2]
[323056114,1713621125678,-2883.58,0.00017808,2]
[323056115,1713621125688,-1816.08,0.00017808,2]
[323056116,1713621125697,-585.36,0.00017808,2]
[323056117,1713621125707,-855.47,0.00017808,2]
[323056118,1713621125716,-534.99,0.00017808,2]
[323056119,1713621125726,-500.0,0.00017808,2]
[323056120,1713621125737,-25055.79,0.00017808,2]
[323056121,1713621125747,-1302.76,0.00017808,2]
[323056122,1713621125758,-2836.68,0.00017808,2]
[323056123,1713621125770,-11346.84,0.00017808,2]
[323056124,1713621125780,-1460.91,0.00017808,2]
[323056125,1713621125789,-604.68,0.00017808,2]
[323056126,1713621125799,-2104.73,0.00017808,2]
[323056127,1713621125808,-500.0,0.00017808,2]
[323056128,1713621125818,-500.0,0.00017808,2]
[323056129,1713621125827,-500.0,0.00017808,2]
[323056130,1713621125836,-621.5438179,0.00017808,2]
[323056131,1713621125845,-2073.42,0.00017808,2]
[323056132,1713621125854,-1526.62,0.00017808,2]
[323056133,1713621125864,-500.0,0.00017808,2]
[323056134,1713621125874,-1538.77,0.00017808,2]
[323056135,1713621125883,-17543.18,0.00017808,2]
[323056136,1713621125893,-500.0,0.00017808,2]
[323056137,1713621125902,-500.0,0.00017808,2]
[323056138,1713621125912,-4660.49,0.00017808,2]
[323056139,1713621125922,-2699.08,0.00017808,2]
[323056140,1713621125934,-500.0,0.00017808,2]
[323056141,1713621125943,-1179.82,0.00017808,2]
[323056142,1713621125952,-1530.53,0.00017808,2]
[323056143,1713621125962,-581.88,0.00017808,2]
[323056144,1713621125980,-2419.34,0.00017808,2]
[323056145,1713621125991,-500.0,0.00017808,2]
[323056146,1713621126002,-1491.91,0.00017808,2]
[323056147,1713621126013,-1046.7,0.00017808,2]
[323056148,1713621126026,-929.27,0.00017808,2]
[323056149,1713621126037,-1397.79,0.00017808,2]
[323056150,1713621126048,-2207.26,0.00017808,2]
[323056151,1713621126059,-5291.84,0.00017808,2]
[323056152,1713621126069,-983.83,0.00017808,2]
[323056153,1713621126080,-584.35,0.00017808,2]
[323056154,1713621126091,-689.72,0.00017808,2]
[323056155,1713621126101,-2126.15,0.00017808,2]
[323056156,1713621126112,-2569.48,0.00017808,2]
[323056157,1713621126123,-3579.93,0.00017808,2]
[323056158,1713621126133,-873.88,0.00017808,2]
[323056159,1713621126143,-820.73,0.00017808,2]
[323056160,1713621126153,-500.0,0.00017808,2]
[323056161,1713621126163,-5218.13,0.00017808,2]
[323056162,1713621126173,-500.0,0.00017808,2]
[323056163,1713621126184,-500.0,0.00017808,2]
[323056164,1713621126194,-987.0,0.00017808,2]
[323056165,1713621126205,-20114.69,0.00017808,2]
[323056166,1713621126215,-893.57,0.00017808,2]
[323056167,1713621126226,-500.0,0.00017808,2]
[323056168,1713621126235,-637.43,0.00017808,2]
[323056169,1713621126245,-1731.18,0.00017808,2]
[323056170,1713621126256,-1285.12,0.00017808,2]
[323056171,1713621126267,-1109.59,0.00017808,2]
[323056172,1713621126277,-1096.27,0.00017808,2]
[323056173,1713621126288,-500.0,0.00017808,2]
[323056174,1713621126299,-725.21,0.00017808,2]
[323056175,1713621126309,-310.6551727,0.00017808,2]
[323056176,1713621126319,-1089.81,0.00017808,2]
[323056177,1713621126330,-508.71,0.00017808,2]
[323056178,1713621126340,-500.0,0.00017808,2]
[323056179,1713621126350,-500.0,0.00017808,2]
[323056180,1713621126361,-520.08,0.00017808,2]
[323056181,1713621126372,-1517.58,0.00017808,2]
[323056182,1713621126382,-500.0,0.00017808,2]
[323056183,1713621126393,-295.73136859,0.00017808,2]
[323056184,1713621126403,-1955.1,0.00017808,2]
[323056185,1713621126412,-500.0,0.00017808,2]
[323056186,1713621126422,-1531.19,0.00017808,2]
[323056187,1713621126432,-620.62,0.00017808,2]
[323056188,1713621126441,-967.39,0.00017808,2]
[323056189,1713621126451,-747.89,0.00017808,2]
[323056190,1713621126460,-7480.38,0.00017808,2]
[323056191,1713621126469,-1894.49,0.00017808,2]
[323056192,1713621126479,-873.58,0.00017808,2]
[323056193,1713621126488,-500.0,0.00017808,2]
[323056194,1713621126497,-1993.22,0.00017808,2]
[323056195,1713621126507,-880.45,0.00017808,2]
[323056196,1713621126517,-500.0,0.00017808,2]
[323056197,1713621126527,-321.43137883,0.00017808,2]
[323056198,1713621126536,-1085.31,0.00017808,2]
[323056199,1713621126546,-500.0,0.00017808,2]
[323056200,1713621126556,-500.0,0.00017808,2]
[323056201,1713621126566,-528.62558803,0.00017808,2]
[323056202,1713621126575,-2753.72,0.00017808,2]
[323056203,1713621126585,-1162.41,0.00017808,2]
[323056204,1713621126594,-2731.21,0.00017808,2]
[323056205,1713621126604,-500.0,0.00017808,2]
[323056206,1713621126613,-1954.97,0.00017808,2]
[323056207,1713621126623,-2627.79,0.00017808,2]
[323056208,1713621126633,-794.92,0.00017808,2]
[323056209,1713621126643,-1013.89,0.00017808,2]
[323056210,1713621126653,-1131.55,0.00017808,2]
[323056211,1713621126663,-622.04,0.00017808,2]
[323056212,1713621126673,-1320.88,0.00017808,2]
[323056213,1713621126684,-1413.35,0.00017808,2]
[323056214,1713621126694,-500.0,0.00017808,2]
[323056215,1713621126705,-500.0,0.00017808,2]
[323056216,1713621126715,-500.0,0.00017808,2]
[323056217,1713621126726,-2346.4,0.00017808,2]
[323056218,1713621126736,-563.88,0.00017808,2]
[323056219,1713621126747,-803.26,0.00017808,2]
[323056220,1713621126758,-2292.01,0.00017808,2]
[323056221,1713621126770,-831.92,0.00017808,2]
[323056222,1713621126780,-500.0,0.00017808,2]
[323056223,1713621126791,-1128.04,0.00017808,2]
[323056224,1713621126801,-5369.64,0.00017808,2]
[323056225,1713621126811,-3431.1,0.00017808,2]
[323056226,1713621126822,-680.01,0.00017808,2]
[323056227,1713621126832,-546.08,0.00017808,2]
[323056228,1713621126842,-2676.86,0.00017808,2]
[323056229,1713621126852,-158.50114611,0.00017808,2]
[323056230,1713621126863,-727.28,0.00017808,2]
[323056231,1713621126873,-2216.75,0.00017808,2]
[323056232,1713621126883,-823.84,0.00017808,2]
[323056233,1713621126893,-500.0,0.00017808,2]
[323056234,1713621126904,-1588.82,0.00017808,2]
[323056235,1713621126914,-841.25,0.00017808,2]
[323056236,1713621126924,-1811.35,0.00017808,2]
[323056237,1713621126935,-500.0,0.00017808,2]
[323056238,1713621126945,-500.0,0.00017808,2]
[323056239,1713621126955,-906.35,0.00017808,2]
[323056240,1713621126965,-866.08,0.00017808,2]
[323056241,1713621126975,-1171.0,0.00017808,2]
[323056242,1713621126985,-3500.27,0.00017808,2]
[323056243,1713621126995,-506.37,0.00017808,2]
[323056244,1713621127006,-1349.52,0.00017808,2]
[323056245,1713621127019,-4084.13,0.00017808,2]
[323056246,1713621127031,-2730.13,0.00017808,2]
[323056247,1713621127041,-1215.96,0.00017808,2]
[323056248,1713621127052,-500.0,0.00017808,2]
[323056249,1713621127062,-500.0,0.00017808,2]
[323056250,1713621127072,-500.0,0.00017808,2]
[323056251,1713621127082,-570.63,0.00017808,2]
[323056252,1713621127093,-1517.62,0.00017808,2]
[323056253,1713621127103,-291.68620751,0.00017808,2]
[323056254,1713621127114,-2492.62,0.00017808,2]
[323056255,1713621127126,-1694.66,0.00017808,2]
[323056256,1713621127136,-589.63,0.00017808,2]
[323056257,1713621127146,-1038.52,0.00017808,2]
[323056258,1713621127157,-500.0,0.00017808,2]
[323056259,1713621127167,-544.68,0.00017808,2]
[323056260,1713621127177,-745.95,0.00017808,2]
[323056261,1713621127188,-500.0,0.00017808,2]
[323056262,1713621127198,-2146.81,0.00017808,2]
[323056263,1713621127209,-500.0,0.00017808,2]
[323056264,1713621127220,-12863.04,0.00017808,2]
[323056265,1713621127230,-1580.69,0.00017808,2]
[323056266,1713621127241,-872.9,0.00017808,2]
[323056267,1713621127251,-500.0,0.00017808,2]
[323056268,1713621127261,-2481.94,0.00017808,2]
[323056269,1713621127275,-2416.85,0.00017808,2]
[323056270,1713621127285,-517.67,0.00017808,2]
[323056271,1713621127299,-716.61,0.00017808,2]
[323056272,1713621127309,-607.93,0.00017808,2]
[323056273,1713621127319,-500.0,0.00017808,2]
[323056274,1713621127330,-698.46,0.00017808,2]
[323056275,1713621127341,-1176.49,0.00017808,2]
[323056276,1713621127350,-1895.23,0.00017808,2]
[323056277,1713621127360,-2366.37,0.00017808,2]
[323056278,1713621127372,-834.84,0.00017808,2]
[323056279,1713621127383,-500.0,0.00017808,2]
[323056280,1713621127393,-500.0,0.00017808,2]